fUST/lending_fUST_20260303
["ID","MTS","AMOUNT","RATE_DAILY","PERIOD"]
[407384661,1772490008070,-500.0,0.00010999,2]
[407384662,1772490008091,-500.0,0.00010999,2]
[407384663,1772490008111,-262.67968613,0.00010999,2]
[407384664,1772490008133,-8.5936387,0.00010999,2]
[407384665,1772490009423,-2234.50742907,0.00010673,2]
[407384666,1772490009446,-491.4063613,0.00010999,2]
[407384667,1772490009468,-500.0,0.00010999,2]
[407384668,1772490009491,-500.0,0.00010999,2]
[407384669,1772490009514,-500.0,0.00010999,2]
[407384670,1772490009538,-500.0,0.00010999,2]
[407384671,1772490009561,-274.08620963,0.00010999,2]
[407384672,1772490010496,-225.91379037,0.00010999,2]
[407384673,1772490010519,-500.0,0.00010999,2]
[407384674,1772490010543,-500.0,0.00010999,2]
[407384675,1772490010567,-500.0,0.00010999,2]
[407384676,1772490010590,-500.0,0.00010999,2]
[407384677,1772490010616,-500.0,0.00010999,2]
[407384678,1772490010640,-446.7097482,0.00010999,2]
[407384679,1772490010668,-500.0,0.00010999,2]
[407384680,1772490010690,-500.0,0.00010999,2]
[407384681,1772490010721,-500.0,0.00010999,2]
[407384682,1772490010746,-327.37646143,0.00010999,2]
[407384683,1772490010836,-172.62353857,0.00010999,2]
[407384684,1772490010859,-500.0,0.00010999,2]
[407384685,1772490010883,-500.0,0.00010999,2]
[407384686,1772490010908,-500.0,0.00010999,2]
[407384687,1772490010932,-500.0,0.00010999,2]
[407384688,1772490010956,-500.0,0.00010999,2]
[407384689,1772490010979,-500.0,0.00010999,2]
[407384690,1772490011003,-500.0,0.00010999,2]
[407384691,1772490011030,-500.0,0.00010999,2]
[407384692,1772490011053,-463.3575469,0.00010999,2]
[407384693,1772490011077,-364.01891453,0.00010999,2]
[407384694,1772490011394,-135.98108547,0.00010999,2]
[407384695,1772490011419,-500.0,0.00010999,2]
[407384696,1772490011442,-500.0,0.00010999,2]
[407384697,1772490011466,-500.0,0.00010999,2]
[407384698,1772490011490,-500.0,0.00010999,2]
[407384699,1772490011515,-500.0,0.00010999,2]
[407384700,1772490011538,-500.0,0.00010999,2]
[407384701,1772490011562,-500.0,0.00010999,2]
[407384702,1772490011585,-500.0,0.00010999,2]
[407384703,1772490011608,-500.0,0.00010999,2]
[407384704,1772490011633,-364.01891453,0.00010999,2]
[407384705,1772490011993,-135.98108547,0.00010999,2]
[407384706,1772490012016,-500.0,0.00010999,2]
[407384707,1772490012039,-457.68146899,0.00010999,2]
[407384708,1772490012063,-500.0,0.00010999,2]
[407384709,1772490012088,-500.0,0.00010999,2]
[407384710,1772490012108,-179.13746938,0.00010999,2]
[407384711,1772490012130,-500.0,0.00010999,2]
[407384712,1772490012152,-500.0,0.00010999,2]
[407384713,1772490012173,-500.0,0.00010999,2]
[407384714,1772490012195,-253.18968633,0.00010999,2]
[407384715,1772490012215,-974.01028983,0.00011,2]
[407384716,1772490014326,-5000.0,0.00011,2]
[407384717,1772490014524,-5000.0,0.00011,2]
[407384718,1772490015020,-5000.0,0.00011,2]
[407384719,1772490015313,-5000.0,0.00011,2]
[407384720,1772490015768,-5000.0,0.00011,2]
[407384721,1772490017851,-5000.0,0.00011,2]
[407384722,1772490018300,-5000.0,0.00011,2]
[407384723,1772490018695,-3510.03392267,0.00011,2]
[407384724,1772490018717,-304.70396096,0.00011268,2]
[407384725,1772490018738,-1185.26211637,0.00011366,2]
[407384726,1772490019189,-3263.24090285,0.00011366,2]
[407384727,1772490019213,-305.93331498,0.00011434,2]
[407384728,1772490019237,-1430.82578217,0.00011435,2]
[407384729,1772490021294,-5000.0,0.00011435,2]
[407384730,1772490021325,-274.41316023,0.00011435,2]
[407384731,1772490021347,-1890.3240274,0.00011435,2]
[407384732,1772490021371,-250.0,0.00011592,2]
[407384733,1772490021394,-250.0,0.00011592,2]
[407384734,1772490021416,-250.0,0.00011592,2]
[407384735,1772490021439,-250.0,0.00011592,2]
[407384736,1772490021461,-461.67526834,0.00011592,2]
[407384737,1772490021483,-250.0,0.00011592,2]
[407384738,1772490021504,-250.0,0.00011592,2]
[407384739,1772490021526,-500.0,0.00011592,2]
[407384740,1772490021547,-168.3888056,0.00011592,2]
[407384741,1772490021570,-168.3888056,0.00011592,2]
[407384742,1772490021592,-36.80993283,0.00011592,2]
[407384743,1772490023559,-463.19006717,0.00011592,2]
[407384744,1772490023583,-500.0,0.00011592,2]
[407384745,1772490023608,-500.0,0.00011592,2]
[407384746,1772490023633,-174.61919143,0.00011592,2]
[407384747,1772490023659,-500.0,0.00011592,2]
[407384748,1772490023683,-250.0,0.00011592,2]
[407384749,1772490023706,-500.0,0.00011592,2]
[407384750,1772490023727,-250.0,0.00011592,2]
[407384751,1772490023749,-250.0,0.00011592,2]
[407384752,1772490023770,-250.0,0.00011592,2]
[407384753,1772490023791,-250.0,0.00011592,2]
[407384754,1772490023811,-250.0,0.00011592,2]
[407384755,1772490023832,-250.0,0.00011592,2]
[407384756,1772490023854,-612.1907414,0.00011592,2]
[407384765,1772490159311,-300.0,0.00011591,2]
[407384766,1772490159333,-1618.1245646,0.00011592,2]
[407384767,1772490159355,-250.0,0.00011592,2]
[407384768,1772490159377,-250.0,0.00011592,2]
[407384769,1772490159400,-250.0,0.00011592,2]
[407384770,1772490159423,-250.0,0.00011592,2]
[407384771,1772490159445,-557.5788265,0.00011592,2]
[407384772,1772490159468,-461.67526834,0.00011592,2]
[407384773,1772490159492,-500.0,0.00011599,2]
[407384774,1772490159514,-176.9919,0.00011599,2]
[407384775,1772490159538,-385.62944056,0.00011599,2]
[407384776,1772490159622,-114.37055944,0.00011599,2]
[407384777,1772490159645,-508.41269591,0.00011599,2]
[407384778,1772490159669,-903.84479274,0.00011599,2]
[407384779,1772490159692,-1410.84523116,0.00011599,2]
[407384780,1772490159717,-323.64656196,0.00011599,2]
[407384781,1772490159740,-369.51190331,0.00011599,2]
[407384782,1772490159764,-1369.36825548,0.000116,2]
[407384783,1772490159853,-5000.0,0.000116,2]
[407384784,1772490160597,-559.9705591,0.000116,2]
[407384785,1772490160620,-200.0,0.00011748,2]
[407384786,1772490160641,-1388.0,0.00011982,2]
[407384787,1772490160663,-2181.0,0.00011982,2]
[407384788,1772490160688,-638.0,0.00011982,2]
[407384789,1772490160715,-33.0294409,0.00011982,2]
[407384790,1772490161076,-536.3055591,0.00011982,2]
[407384791,1772490161100,-730.0,0.00011982,2]
[407384792,1772490161122,-3733.6944409,0.00012,2]
[407384793,1772490161407,-1372.99156311,0.00012,2]
[407384794,1772490161430,-1680.0,0.00012097,2]
[407384795,1772490161452,-800.0,0.000121,2]
[407384796,1772490161475,-1147.00843689,0.0001214,2]
[407384797,1772490161867,-1165.82853543,0.0001214,2]
[407384798,1772490161889,-578.20924308,0.0001214,2]
[407384799,1772490161911,-531.37414409,0.0001214,2]
[407384800,1772490161931,-209.154,0.00012182,2]
[407384801,1772490161952,-150.549,0.00012182,2]
[407384802,1772490161973,-192.86,0.00012182,2]
[407384803,1772490161995,-265.625,0.00012182,2]
[407384804,1772490162016,-467.012061,0.00012239,2]
[407384805,1772490162037,-184.9621764,0.00012241,2]
[407384806,1772490162058,-656.53,0.00012329,2]
[407384807,1772490162085,-597.89584,0.00012329,2]
[407384808,1772490162279,-75.67416,0.00012329,2]
[407384809,1772490162307,-561.31,0.00012329,2]
[407384810,1772490162329,-467.76,0.00012329,2]
[407384811,1772490162351,-389.8,0.00012329,2]
[407384812,1772490162375,-324.83,0.00012329,2]
[407384813,1772490162398,-270.7,0.00012329,2]
[407384814,1772490162420,-225.58,0.00012329,2]
[407384815,1772490162443,-187.98,0.00012329,2]
[407384816,1772490162464,-156.65,0.00012329,2]
[407384817,1772490162485,-783.29,0.00012329,2]
[407384818,1772490162507,-600.0,0.00012341,2]
[407384819,1772490162529,-184.96217639,0.00012461,2]
[407384820,1772490162550,-500.0,0.00012495,2]
[407384821,1772490162572,-271.46366361,0.000125,2]
[407384822,1772490162697,-5000.0,0.000125,2]
[407384823,1772490163127,-1833.28133531,0.000125,2]
[407384824,1772490163148,-852.67821556,0.000125,2]
[407384825,1772490163171,-2314.04044913,0.00012641,3]
[407384826,1772490163377,-5000.0,0.00012641,3]
[407384827,1772490165126,-3672.06671965,0.00012641,3]
[407384828,1772490165151,-184.96217639,0.0001268,2]
[407384829,1772490165174,-1142.97110396,0.00012688,2]
[407384830,1772490165638,-1255.44083634,0.00012688,2]
[407384831,1772490165662,-168.0,0.00012693,2]
[407384832,1772490165685,-420.0,0.0001273,2]
[407384833,1772490165708,-467.012061,0.00012754,2]
[407384834,1772490165731,-168.0,0.00012761,2]
[407384835,1772490165755,-695.0,0.00012797,2]
[407384836,1772490165779,-233.349096,0.00012836,2]
[407384837,1772490165802,-168.0,0.0001287,2]
[407384838,1772490165824,-1425.19800666,0.0001287,2]
[407384839,1772490165943,-5000.0,0.0001287,2]
[407384843,1772490190057,-300.0,0.00012869,2]
[407384844,1772490190081,-4700.0,0.0001287,2]
[407384845,1772490192464,-5000.0,0.0001287,2]
[407384847,1772490213724,-1912.2606729,0.0001287,2]
[407384848,1772490213748,-1520.0,0.0001287,2]
[407384849,1772490213773,-1567.7393271,0.0001287,2]
[407384850,1772490216152,-3576.80063374,0.0001287,2]
[407384851,1772490216177,-189.13141985,0.0001288,2]
[407384852,1772490216201,-1234.06794641,0.0001289,3]
[407384853,1772490217223,-2570.91323633,0.0001289,3]
[407384854,1772490217246,-1496.141039,0.00012892,2]
[407384855,1772490217268,-282.4,0.000129,2]
[407384856,1772490217291,-151.0,0.000129,2]
[407384857,1772490217313,-499.54572467,0.000129,2]
[407384858,1772490218181,-500.45427533,0.000129,2]
[407384859,1772490218203,-184.96217639,0.000129,2]
[407384860,1772490218223,-174.61919141,0.00012961,2]
[407384862,1772490242781,300.0,0.00012999,2]
[407384867,1772490269237,151.0,0.000128,2]
[407384868,1772490269663,151.0,0.000126,2]
[407384869,1772490269966,151.0,0.000124,2]
[407384870,1772490270253,151.0,0.000122,2]
[407384874,1772490293224,500.0,0.00011999,2]
[407384875,1772490293260,500.0,0.00011999,2]
[407384876,1772490293310,500.0,0.00011999,2]
[407384877,1772490293373,403.75332852,0.00011999,2]
[407384878,1772490294429,-2000.0,0.00013,2]
[407384879,1772490296303,-2000.0,0.00013,2]
[407384880,1772490298424,-2000.0,0.00013,2]
[407384881,1772490300187,-2000.0,0.00013,2]
[407384884,1772490302099,241.0,0.00012999,2]
[407384886,1772490309106,1091.21102835,0.00012999,2]
[407384887,1772490309128,79.78897165,0.00012999,2]
[407384888,1772490312303,2230.315306,0.00012992,2]
[407384889,1772490316521,214.15332048,0.0001264,2]
[407385029,1772490631919,-1200.0,0.00011427,2]
[407385031,1772490631929,-4606.80362597,0.00011428,2]
[407385033,1772490631939,-581.0,0.00011428,2]
[407385035,1772490631949,-5000.0,0.00011543,2]
[407385037,1772490631958,-304.70396096,0.0001166,2]
[407385038,1772490631967,-300.0,0.00011708,2]
[407385040,1772490631977,-300.0,0.00011709,2]
[407385042,1772490631986,-300.0,0.00011709,2]
[407385043,1772490631996,-300.0,0.00011709,2]
[407385045,1772490632006,-78.94851174,0.00011709,2]
[407385298,1772490638790,-393.19637403,0.00011592,2]
[407385300,1772490638800,-221.05148826,0.00011709,2]
[407385302,1772490638809,-197.75347119,0.0001171,2]
[407385304,1772490638819,-4448.50301922,0.00011999,2]
[407385306,1772490638830,-500.0,0.00011999,2]
[407385308,1772490638842,-545.7681469,0.00011999,2]
[407385310,1772490638851,-500.0,0.00011999,2]
[407385312,1772490638862,-500.0,0.00011999,2]
[407385314,1772490638871,-500.0,0.00011999,2]
[407385316,1772490638881,-389.12334715,0.00011999,2]
[407385318,1772490638890,-500.0,0.00011999,2]
[407385320,1772490638899,-500.0,0.00011999,2]
[407385322,1772490638908,-500.0,0.00011999,2]
[407385324,1772490638917,-500.0,0.00011999,2]
[407385326,1772490638926,-311.91332209,0.00011999,2]
[407385328,1772490638936,-500.0,0.00011999,2]
[407385330,1772490638944,-500.0,0.00011999,2]
[407385332,1772490638954,-500.0,0.00011999,2]
[407385334,1772490638963,-500.0,0.00011999,2]
[407385336,1772490638972,-500.0,0.00011999,2]
[407385338,1772490638982,-500.0,0.00011999,2]
[407385340,1772490638991,-500.0,0.00011999,2]
[407385342,1772490639000,-500.0,0.00011999,2]
[407385344,1772490639010,-500.0,0.00011999,2]
[407385346,1772490639019,-500.0,0.00011999,2]
[407385348,1772490639029,-500.0,0.00011999,2]
[407385350,1772490639038,-500.0,0.00011999,2]
[407385352,1772490639047,-500.0,0.00011999,2]
[407385354,1772490639055,-176.26891488,0.00011999,2]
[407385356,1772490639067,-323.73108512,0.00011999,2]
[407385358,1772490639075,-500.0,0.00011999,2]
[407385360,1772490639085,-500.0,0.00011999,2]
[407385362,1772490639094,-317.02179221,0.00011999,2]
[407385364,1772490639103,-500.0,0.00011999,2]
[407385366,1772490639112,-500.0,0.00011999,2]
[407385368,1772490639122,-500.0,0.00011999,2]
[407385369,1772490639132,-500.0,0.00011999,2]
[407385372,1772490639143,-500.0,0.00011999,2]
[407385374,1772490639152,-500.0,0.00011999,2]
[407385376,1772490639162,-500.0,0.00011999,2]
[407385378,1772490639174,-500.0,0.00011999,2]
[407385379,1772490639183,-500.0,0.00011999,2]
[407385382,1772490639193,-500.0,0.00011999,2]
[407385384,1772490639202,-500.0,0.00011999,2]
[407385386,1772490639212,-500.0,0.00011999,2]
[407385387,1772490639221,-500.0,0.00011999,2]
[407385389,1772490639231,-500.0,0.00011999,2]
[407385391,1772490639240,-500.0,0.00011999,2]
[407385393,1772490639250,-500.0,0.00011999,2]
[407385395,1772490639260,-465.41676905,0.00011999,2]
[407385397,1772490639269,-500.0,0.00011999,2]
[407385399,1772490639280,-500.0,0.00011999,2]
[407385401,1772490639289,-179.13746938,0.00011999,2]
[407385403,1772490639299,-570.33,0.00012122,2]
[407385405,1772490639309,-730.0,0.00012122,2]
[407385407,1772490639318,-783.0,0.00012329,2]
[407385409,1772490639327,-652.5,0.00012329,2]
[407385411,1772490639337,-543.75,0.00012329,2]
[407385413,1772490639347,-453.12,0.00012329,2]
[407385415,1772490639355,-377.6,0.00012329,2]
[407385417,1772490639365,-314.67,0.00012329,2]
[407385419,1772490639374,-262.22,0.00012329,2]
[407385421,1772490639384,-218.52,0.00012329,2]
[407385423,1772490639393,-182.1,0.00012329,2]
[407385425,1772490639403,-151.75,0.00012329,2]
[407385427,1772490639412,-758.77,0.00012329,2]
[407385429,1772490639421,-1680.0,0.0001257,2]
[407385431,1772490639431,-600.0,0.00012574,2]
[407385433,1772490639441,-156.02599064,0.0001264,2]
[407385435,1772490639450,-400.85826001,0.0001269,2]
[407385437,1772490639461,-168.0,0.00012815,2]
[407385439,1772490639470,-420.0,0.00012858,2]
[407385441,1772490639480,-19351.07984878,0.0001287,2]
[407385783,1772490643160,-399.44699907,0.0001287,2]
[407386048,1772490646105,-3431.47179255,0.0001287,2]
[407386050,1772490646115,-739.84870557,0.000129,2]
[407386052,1772490646124,-168.0,0.00012912,2]
[407386054,1772490646133,-166.0,0.00012957,2]
[407386055,1772490646143,-168.3888056,0.00012992,2]
[407386057,1772490646152,-500.0,0.00012992,2]
[407386060,1772490646162,-2230.315306,0.00012992,2]
[407386062,1772490646172,-250.0,0.00012992,2]
[407386063,1772490646182,-250.0,0.00012992,2]
[407386065,1772490646191,-500.0,0.00012992,2]
[407386067,1772490646200,-18.64431118,0.00012992,2]
[407386072,1772490646236,-481.35568882,0.00012992,2]
[407386074,1772490646245,-250.0,0.00012992,2]
[407386076,1772490646254,-250.0,0.00012992,2]
[407386078,1772490646265,-461.67526834,0.00012992,2]
[407386080,1772490646274,-500.0,0.00012992,2]
[407386082,1772490646284,-168.3888056,0.00012992,2]
[407386084,1772490646294,-174.61919143,0.00012992,2]
[407386086,1772490646304,-557.5788265,0.00012992,2]
[407386088,1772490646313,-500.0,0.00012992,2]
[407386090,1772490646323,-250.0,0.00012992,2]
[407386092,1772490646332,-392.92057468,0.00012992,2]
[407399915,1772491298497,-32.58612122,0.00011694,2]
[407399916,1772491298514,-3634.82775756,0.00011694,2]
[407399917,1772491298523,-32.58612122,0.00011812,2]
[407399947,1772491323059,-553.41387878,0.00011812,2]
[407399948,1772491323090,-202.49840177,0.00011887,2]
[407399949,1772491323120,-160.566907,0.00011963,2]
[407399950,1772491323149,-500.0,0.00012,2]
[407399951,1772491323205,-553.41387878,0.0001205,2]
[407399952,1772491323217,-202.49840177,0.0001205,2]
[407399953,1772491323240,-160.566907,0.0001205,2]
[407399954,1772491323252,-254.52081245,0.0001205,2]
[407399955,1772491323265,-245.47918755,0.0001205,2]
[407399956,1772491323281,-54.52081245,0.0001205,2]
[407399957,1772491323291,-638.0,0.00012051,2]
[407399958,1772491323300,-474.52081245,0.00012051,2]
[407399963,1772491391527,2575.0,0.0001001,2]
[407400016,1772491596135,-202.85181168,0.00012273,2]
[407400017,1772491596161,-500.0,0.00012495,2]
[407400018,1772491596182,-2230.315306,0.00012727,2]
[407400019,1772491596205,-300.0,0.00012734,2]
[407400020,1772491596229,-8928.6134762,0.00012735,2]
[407400021,1772491596250,-323.6612049,0.00012747,2]
[407400022,1772491596272,-256.77408885,0.00012784,2]
[407400023,1772491596299,-462.19335992,0.00012784,2]
[407400024,1772491596320,-821.67708431,0.00012784,2]
[407400025,1772491596342,-2415.63542514,0.000128,2]
[407400071,1772491832155,-658.06644971,0.00011889,2]
[407400072,1772491832223,-1513.37808509,0.00011889,2]
[407400073,1772491832233,-198.79477545,0.00011969,2]
[407400074,1772491832243,-300.0,0.0001205,2]
[407400075,1772491832252,-634.0,0.00012051,2]
[407400076,1772491832262,-2181.0,0.00012051,2]
[407400077,1772491832272,-1388.639,0.00012051,2]
[407400078,1772491832282,-1282.58657378,0.00012747,2]
[407400079,1772491832292,-52.70750739,0.00012784,2]
[407400316,1772491840750,-316.82111398,0.00012784,2]
[407400318,1772491840759,-458.01888602,0.000128,2]
[407400599,1772491843468,-126.34568884,0.000128,2]
[407400601,1772491843478,-284.94456351,0.00012805,2]
[407400603,1772491843487,-43.26149806,0.00012861,2]
[407400605,1772491843498,-2187.05380794,0.00012861,2]
[407400607,1772491843507,-500.0,0.00012869,2]
[407400609,1772491843516,-500.0,0.00012869,2]
[407400611,1772491843527,-500.0,0.00012869,2]
[407400613,1772491843536,-107.65189366,0.00012869,2]
[407400625,1772491843635,-392.34810634,0.00012869,2]
[407400627,1772491843644,-500.0,0.00012869,2]
[407400629,1772491843653,-500.0,0.00012869,2]
[407400631,1772491843663,-434.50986666,0.00012869,2]
[407400634,1772491843684,-162.06458862,0.00012869,2]
[407400636,1772491843693,-232.16790336,0.00012869,2]
[407400871,1772491846300,-76.76313432,0.00012869,2]
[407400873,1772491846310,-500.0,0.00012869,2]
[407400875,1772491846318,-500.0,0.00012869,2]
[407400877,1772491846327,-500.0,0.00012869,2]
[407400878,1772491846337,-317.52016322,0.00012869,2]
[407400881,1772491846346,-500.0,0.00012869,2]
[407400883,1772491846355,-500.0,0.00012869,2]
[407400885,1772491846365,-500.0,0.00012869,2]
[407400886,1772491846373,-176.9919,0.00012869,2]
[407400888,1772491846382,-500.0,0.00012869,2]
[407400890,1772491846392,-262.67968613,0.00012869,2]
[407400892,1772491846400,-500.0,0.00012869,2]
[407400894,1772491846410,-500.0,0.00012869,2]
[407400896,1772491846418,-500.0,0.00012869,2]
[407400898,1772491846427,-500.0,0.00012869,2]
[407400900,1772491846437,-500.0,0.00012869,2]
[407400902,1772491846446,-500.0,0.00012869,2]
[407400904,1772491846456,-500.0,0.00012869,2]
[407400906,1772491846465,-500.0,0.00012869,2]
[407400908,1772491846474,-173.95024471,0.00012869,2]
[407400910,1772491846483,-500.0,0.00012869,2]
[407400912,1772491846492,-3431.47179255,0.0001287,2]
[407400914,1772491846501,-184.9621764,0.00012892,2]
[407400916,1772491846511,-184.96217639,0.00012895,2]
[407400918,1772491846521,-184.96217639,0.00012897,2]
[407400920,1772491846530,-1078.17592086,0.000129,3]
[407400922,1772491846539,-2466.7989912,0.000129,3]
[407400924,1772491846548,-1823.9498004,0.000129,3]
[407400926,1772491846557,-282.4,0.000129,2]
[407400928,1772491846567,-51827.73507958,0.000129,2]
[407400932,1772491846597,-8422.6689209,0.000129,2]
[407414791,1772492462679,-300.0,0.0001205,2]
[407414792,1772492462717,-1103.0,0.0001205,2]
[407414793,1772492462755,-590.0,0.0001205,2]
[407414794,1772492462793,-300.0,0.0001205,2]
[407414795,1772492462831,-201.35887994,0.0001205,2]
[407414796,1772492462866,-209.154,0.00012051,2]
[407414797,1772492462893,-150.549,0.00012051,2]
[407414798,1772492462920,-265.625,0.00012051,2]
[407414799,1772492462947,-192.86,0.00012051,2]
[407414800,1772492462977,-730.0,0.00012051,2]
[407414801,1772492463440,-525.86634726,0.00012051,2]
[407414803,1772492492938,-425.09278818,0.00012299,2]
[407414972,1772493032247,-500.82288191,0.00011455,2]
[407414973,1772493032259,-3679.47222523,0.00011455,2]
[407414974,1772493032269,-5000.0,0.00011571,2]
[407414975,1772493032279,-197.33170234,0.00011747,2]
[407414976,1772493032289,-300.0,0.00012044,2]
[407414977,1772493032298,-300.0,0.00012044,2]
[407414978,1772493032308,-521.51174161,0.00012045,2]
[407414979,1772493032367,-208.48825839,0.00012045,2]
[407414980,1772493032376,-475.468,0.00012045,2]
[407414981,1772493032385,-2230.315306,0.00012292,2]
[407414982,1772493032394,-6669.20765936,0.00012299,2]
[407415007,1772493038626,-1894.17013942,0.00012299,2]
[407415009,1772493038636,-852.67821556,0.000125,2]
[407415011,1772493038646,-443.0,0.00012585,2]
[407415013,1772493038656,-443.0,0.00012634,2]
[407415015,1772493038666,-443.0,0.00012652,2]
[407415017,1772493038676,-500.0,0.0001271,2]
[407415019,1772493038685,-397.06513019,0.0001271,2]
[407415021,1772493038695,-500.0,0.0001271,2]
[407415023,1772493038704,-500.0,0.0001271,2]
[407415025,1772493038714,-500.0,0.0001271,2]
[407415027,1772493038723,-499.37821739,0.0001271,2]
[407415029,1772493038735,-553.01640939,0.0001271,2]
[407415031,1772493038745,-402.43764279,0.0001271,2]
[407415033,1772493038754,-335.93296433,0.0001271,2]
[407415035,1772493038764,-383.48949164,0.0001271,2]
[407415037,1772493038773,-443.0,0.00012711,2]
[407415039,1772493038782,-443.0,0.00012764,2]
[407415041,1772493038791,-518.64431118,0.00012791,2]
[407415043,1772493038800,-250.0,0.00012791,2]
[407415045,1772493038810,-500.0,0.00012791,2]
[407415047,1772493038819,-168.3888056,0.00012791,2]
[407415049,1772493038829,-250.0,0.00012791,2]
[407415051,1772493038838,-500.0,0.00012791,2]
[407415053,1772493038848,-174.61919141,0.00012791,2]
[407415055,1772493038856,-250.0,0.00012791,2]
[407415057,1772493038866,-500.0,0.00012791,2]
[407415059,1772493038876,-181.08010149,0.00012791,2]
[407415061,1772493038885,-250.0,0.00012791,2]
[407415063,1772493038894,-500.0,0.00012791,2]
[407415065,1772493038904,-187.78006525,0.00012791,2]
[407415067,1772493038913,-250.0,0.00012791,2]
[407415069,1772493038922,-500.0,0.00012791,2]
[407415071,1772493038931,-194.72792766,0.00012791,2]
[407415073,1772493038941,-250.0,0.00012791,2]
[407415075,1772493038950,-500.0,0.00012791,2]
[407415077,1772493038961,-201.93286099,0.00012791,2]
[407415079,1772493038971,-250.0,0.00012791,2]
[407415081,1772493038981,-250.0,0.00012791,2]
[407415083,1772493038991,-209.40437684,0.00012791,2]
[407415085,1772493039000,-250.0,0.00012791,2]
[407415087,1772493039009,-217.15233878,0.00012791,2]
[407415089,1772493039019,-207.13825911,0.00012791,2]
[407415091,1772493039028,-225.18697532,0.00012791,2]
[407415093,1772493039038,-233.51889341,0.00012791,2]
[407415095,1772493039047,-229.60035394,0.00012791,2]
[407415097,1772493039058,-168.3888056,0.00012791,2]
[407415099,1772493039068,-461.67526834,0.00012791,2]
[407415101,1772493039078,-250.0,0.00012791,2]
[407415102,1772493039087,-151.0,0.00012791,2]
[407415105,1772493039097,-151.0,0.00012791,2]
[407415106,1772493039107,-250.0,0.00012791,2]
[407415109,1772493039117,-151.0,0.00012791,2]
[407415111,1772493039127,-557.5788265,0.00012791,2]
[407415113,1772493039137,-250.0,0.00012791,2]
[407415115,1772493039146,-151.0,0.00012791,2]
[407415117,1772493039157,-250.0,0.00012791,2]
[407415118,1772493039167,-151.0,0.00012791,2]
[407415120,1772493039177,-250.0,0.00012791,2]
[407415122,1772493039187,-151.0,0.00012791,2]
[407415125,1772493039196,-274.83919347,0.00012791,2]
[407415126,1772493039206,-151.0,0.00012791,2]
[407415128,1772493039215,-151.0,0.00012791,2]
[407415130,1772493039224,-166.98018273,0.00012791,2]
[407415132,1772493039237,-250.0,0.00012791,2]
[407415135,1772493039247,-250.0,0.00012791,2]
[407415137,1772493039257,-250.0,0.00012791,2]
[407415139,1772493039267,-250.0,0.00012791,2]
[407415141,1772493039277,-250.0,0.00012791,2]
[407415143,1772493039286,-491.14915224,0.00012799,2]
[407415145,1772493039307,-1463.32666253,0.00012799,2]
[407415148,1772493039318,-698.80103987,0.00012799,2]
[407415334,1772493041089,-617.15816954,0.00012799,2]
[407415835,1772493046390,-388.19670024,0.00012799,2]
[407415864,1772493046662,-5121.26390372,0.00012799,2]
[407415869,1772493046707,-6931.99112006,0.00012799,2]
[407415872,1772493046719,-6534.2897192,0.00012799,2]
[407415874,1772493046729,-443.0,0.00012834,2]
[407415876,1772493046739,-1445.38093082,0.0001284,2]
[407429770,1772493514906,311.02570682,0.0001001,2]
[407429924,1772493843226,3200.0,0.00011,30]
[407429928,1772493863469,323.661007,0.00013,60]
[407429929,1772493863496,2000.0,0.00013,60]
[407429930,1772493863522,1059.838993,0.00013,60]